Workbook

Sheet BUDGET SUMMARY
A1: BUDGET SUMMARY FOR FY 2022-2023
A3: REVENUES:
D4: FY 2023 BUDGET | E4: FY 2022 BUDGET | F4: FY 2021 BUDGET | G4: DIFFERENCE
B6: GENERAL FUND | D6: =SUM(REVENUE!B5:B47)+SUM(REVENUE!B53:B75) -> 2914124 | E6: =SUM(REVENUE!C5:C47)+SUM(REVENUE!C53:C75) -> 2208020 | F6: =SUM(REVENUE!D5:D47)+SUM(REVENUE!D53:D75) -> 1967050 | G6: =D6-E6 -> 706104
B7: GAS FUND | D7: =SUM(REVENUE!B90:B97) -> 2891210 | E7: =SUM(REVENUE!C90:C97) -> 2237210 | F7: =SUM(REVENUE!D90:D97) -> 2071498 | G7: =D7-E7 -> 654000
B8: W/S FUND | D8: =SUM(REVENUE!B76:B88) -> 1184690 | E8: =SUM(REVENUE!C76:C88) -> 1184690 | F8: =SUM(REVENUE!D76:D88) -> 1116590 | G8: 0
B9: SANITATION FUND | D9: =SUM(REVENUE!B98:B100) -> 500100 | E9: =SUM(REVENUE!C98:C100) -> 477100 | F9: =SUM(REVENUE!D98:D100) -> 440100 | G9: 23000
B11: TOTAL REVENUE: | D11: =SUM(D6:D9) -> 7490124 | E11: =SUM(E6:E9) -> 6107020 | F11: =SUM(F6:F9) -> 5595238 | G11: =SUM(G6:G9) -> 1383104
A14: EXPENDITURES:
B16: GENERAL FUND
C18: LEGISLATIVE | D18: =LEGISLATION!B17 -> 78900 | E18: =LEGISLATION!C17 -> 81900 | F18: =LEGISLATION!D17 -> 72900 | G18: =D18-E18 -> -3000
C19: ADMINISTRATIVE | D19: =ADMINISTRATION!B54 -> 841510 | E19: =ADMINISTRATION!C54 -> 802010 | F19: =ADMINISTRATION!D54 -> 814173 | G19: =D19-E19 -> 39500
C20: MUNICIPAL COURT | D20: ='MUNICIPAL COURT'!B22 -> 165150 | E20: ='MUNICIPAL COURT'!C22 -> 195150 | F20: ='MUNICIPAL COURT'!D22 -> 182050 | G20: -30000
C21: POLICE DEPARTMENT | D21: =POLICE!B37 -> 967600 | E21: =POLICE!C37 -> 867820 | F21: =POLICE!D37 -> 867500 | G21: 99780
C22: FIRE DEPARTMENT | D22: =FIRE!B39 -> 500600 | E22: =FIRE!C39 -> 483000 | F22: =FIRE!D39 -> 457556 | G22: 17600
C23: ANIMAL CONTROL | D23: ='ANIMAL CONTROL'!B18 -> 29970 | E23: ='ANIMAL CONTROL'!C18 -> 25470 | F23: ='ANIMAL CONTROL'!D18 -> 25470 | G23: 4500
C24: STREET DEPARTMENT | D24: ='STREET AND LANES'!B44 -> 671700 | E24: ='STREET AND LANES'!C44 -> 624020 | F24: ='STREET AND LANES'!D44 -> 645662 | G24: 47680
C25: SHOP | D25: =SHOP!B29 -> 89180 | E25: =SHOP!C29 -> 85155 | F25: =SHOP!D29 -> 84305 | G25: 4025
C27: TOTAL G/F EXPENDITURES: | D27: =SUM(D18:D25) -> 3344610 | E27: =SUM(E18:E25) -> 3164525 | F27: =SUM(F18:F25) -> 3149616 | G27: 180085
B29: GAS FUND EXPENDITURES | D29: =GAS!B45 -> 2308905 | E29: =GAS!C45 -> 1519268 | F29: =GAS!D45 -> 1274100 | G29: 789637
B30: WATER EXPENDITURES | D30: =WATER!B45 -> 440580 | E30: =WATER!C45 -> 383357 | F30: =WATER!D45 -> 361680 | G30: 57223
B31: SEWER EXPENDITURES | D31: =SEWER!B49 -> 851580 | E31: =SEWER!C49 -> 514520 | F31: =SEWER!D49 -> 521802 | G31: 337060
B32: SANITATION EXPENDITURES | D32: =SANITATION!B37 -> 544449 | E32: =SANITATION!C37 -> 525350 | F32: =SANITATION!D37 -> 288040 | G32: 19099
B35: TOTAL EXPENDITURES: | D35: =SUM(D27:D34) -> 7490124 | E35: =SUM(E27:E34) -> 6107020 | F35: =SUM(F27:F34) -> 5595238 | G35: =SUM(G27:G34) -> 1383104

Sheet REVENUE
A1: REVENUE
B2: 2023 | C2: 2022 | D2: 2021
B3: BUDGETED | C3: BUDGETED | D3: BUDGETED
B4: REVENUE | C4: REVENUE | D4: REVENUE
A5: 100-004-00004-00031-311235 2015 PROPERTY TAXES
A6: 100-004-00004-00031-311236 2016 PROPERTY TAXES
A7: 100-004-00004-00031-311237 2017 PROPERTY TAXES
A8: 100-004-00004-00031-311238 2018 PROPERTY TAXES
A9: 100-004-00004-00031-311239 2019 PROPERTY TAXES
A10: 100-004-00004-00031-311240 2020 PROPERTY TAXES | C10: 24220 | D10: 300000
A11: 100-004-00004-00031-311241 2021 PROPERTY TAXES | B11: 25000 | C11: 300000 | D11: 0
A12: 100-004-00004-00031-311242 2022 PROPERTY TAXES | B12: 300000 | C12: 0 | D12: 0
A13: 100-004-00004-00031-311310 MOTOR VEHICLE TAXES | B13: 10000 | C13: 10000 | D13: 10000
A14: 100-004-00004-00031-311311 TAVT TAXES | B14: 60000 | C14: 60000 | D14: 60000
A15: 100-004-00004-00031-311312 AAVT TAXES | C15: 0
A16: 100-004-00004-00031-311320 MOBILE HOME TAXES | B16: 3000 | C16: 3000 | D16: 3000
A17: 100-004-00004-00031-311340 INTANGIBLE RECORDING TAX | B17: 3000 | C17: 2000 | D17: 2000
A18: 100-004-00004-00031-311350 RAILROAD EQUIPMENT TAX | B18: 3500 | C18: 3500 | D18: 3000
A19: 100-004-00004-00031-311600 REAL ESTATE TRANSFER TAX | B19: 1500 | C19: 1500 | D19: 1500
A20: 100-004-00004-00031-311700 FRANCHISE TAX | B20: 50000 | C20: 50000 | D20: 50000
A21: 100-004-00004-00031-311710 FRANCHISE TAX-GA POWER | B21: 145000 | C21: 145000 | D21: 145000
A22: 100-004-00004-00031-311760 FRANCHIS TAX-BELLSOUTH
A23: 100-004-00004-00031-311765 TOWER RENTAL FEE | B23: 32700 | C23: 30000 | D23: 30000
A24: 100-004-00004-00031-313100 LOCAL OPTION SALES TAX | B24: 295000 | C24: 255000 | D24: 225000
A25: 100-004-00004-00031-314100 HOTEL/MOTEL OCCUPANCY | B25: 6500 | C25: 6500 | D25: 6500
A26: 100-004-00004-00031-314200 ALCOHOLIC BEV EXCISE | B26: 145000 | C26: 85500 | D26: 85500
A27: 100-004-00004-00031-316100 BUSINESS LICENSES | B27: 28000 | C27: 26000 | D27: 26000
A28: 100-004-00004-00031-316200 INSURANCE PREMIUM TAX | B28: 260000 | C28: 250000 | D28: 235000
A29: 100-004-00004-00031-316300 FINANCIAL INSTITUTION TAX | B29: 18500 | C29: 17500 | D29: 16500
A30: 100-004-00004-00031-319110 PENALTIES ON DEL TAXES | B30: 11000 | C30: 10000 | D30: 10000
A31: 100-004-00004-00031-319111 INTEREST ON DEL TAXES | B31: 1750 | C31: 1750 | D31: 1500
A32: 100-004-00004-00031-319120 FI FA ON DEL TAXES | B32: 1000 | D32: 1000
A33: 100-004-00004-00031-319500 FI FA
A34: 100-004-00004-00032-321100 BEER & WINE LICENSES | B34: 9000 | C34: 6500 | D34: 6000
A35: 100-004-00004-00032-323100 BUILDING INSPECTION FEES | B35: 750 | C35: 750 | D35: 750
A36: 100-004-00004-00032-324100 PENALTIES ON BUS LICENSES | B36: 100 | C36: 100 | D36: 100
A37: 100-004-00004-00033-331310 DOT-TIA PROJECT
A38: 100-004-00004-00033-331312 COUNTY FIREFIGHTING SERVICES | B38: 40000 | C38: 40000 | D38: 0
A39: 100-004-00004-00032-331315 DOT LMIG | B39: 49000 | C39: 49000 | D39: 49000
A40: 100-004-00004-00033-331316 SAFETY GRANT | B40: 6500 | C40: 6500 | D40: 6500
A41: 100-004-00004-00033-331317 FIREWORKS TAX GRANT
A42: 100-004-00004-00033-331318 CARES ACT FUNDING | D42: 0
A43: 100-004-00004-00033-331319 ARP ACT FUNDING | B43: 516463 | C43: 0 | D43: 0
A44: 100-004-00004-00033-331321 FIRST RESPONDERS GRANT | C44: 0 | D44: 0
A45: 100-004-00004-00032-334111 STATE OF GA - GEMA REIMB
A46: 100-004-00004-00033-336100 LOCAL GRANTS-JENKINS COUNTY | B46: 5000 | C46: 5000 | D46: 5000
A47: 100-004-00004-00033-338010 PAYMENTS IN LIEU-HSG | B47: 8000 | C47: 8000 | D47: 8000
A48: REVENUE
B49: 2023 | C49: 2022 | D49: 2021
B50: BUDGETED | C50: BUDGETED | D50: BUDGETED
B51: REVENUE | C51: REVENUE | D51: REVENUE
A53: 100-004-00004-00034-341910 QUALIFYING FEES | B53: 300 | C53: 300 | D53: 300
A54: 100-004-00004-00034-342200 SPECIAL FIRE PROTECTION | B54: 10000 | C54: 10000 | D54: 10000
A55: 100-004-00004-00034-346900 ANSWERING SERVICE FEES
A56: 100-004-00004-00034-346910 E-911 MANAGEMENT FEES
A57: 100-004-00004-00034-346911 E-911 FEES FROM COUNTY
A58: 100-004-00004-00034-349100 CEMETERY FEES | B58: 12500 | C58: 12500 | D58: 10000
A59: 100-004-00004-00034-349300 RETURN CHECK SVC CHARGE | B59: 500 | C59: 500 | D59: 500
A60: 100-004-00004-00035-351170 FEES, FINES & FORFEITURES | B60: 500000 | C60: 550000 | D60: 450000
A61: 100-004-00004-00035-351171 PROBATION FEES | B61: 30000 | C61: 30000 | D61: 30000
A62: 100-004-00004-00035-351175 TECHNOLOGY FEES | B62: 30000 | C62: 35000 | D62: 30000
A63: 100-004-00004-00036-361000 INTEREST INC-INVESTMENTS | B63: 2000 | C63: 2000 | D63: 2000
A64: 100-004-00004-00038-380000 COKE FUND | B64: 1000 | C64: 1000 | D64: 1500
A65: 100-004-00004-00038-380001 SNACK FUND | B65: 500 | C65: 500 | D65: 750
A66: 100-004-00004-00038-381000 COMMUNITY HOUSE RENT | B66: 10000 | C66: 9000 | D66: 8000
A67: 100-004-00004-00038-389010 RECOVERY OF BAD DEBT | B67: 100 | C67: 100 | D67: 100
A68: 100-004-00004-00038-389020 MISCELLANEOUS RECEIPTS | B68: 60000 | C68: 60000 | D68: 60000
A69: 100-004-00004-00038-389025 DISCOUNTS TAKEN | B69: 1750 | C69: 1750 | D69: 1500
A70: 100-004-00004-00038-389030 OVER AND SHORT | B70: 50 | C70: 50 | D70: 50
A71: 100-004-00004-00038-389040 EMPLOYEE INSURANCE | B71: 62000 | C71: 56000 | D71: 45000
A72: 100-004-00004-00038-389050 CRIMINAL HISTORIES | B72: 1500 | C72: 1500 | D72: 2000
A73: 100-004-00004-00039-392100 CITY PROPERTY SOLD | B73: 40000 | C73: 40000 | D73: 10000
A74: 100-004-00004-00039-393600 CONTINGENCY FUND | B74: 116161 | D74: 18000
A75: 100-004-00004-00040-400000 PROPERTY TAX & ERRORS | B75: 500 | C75: 500 | D75: 500
A76: 505-004-00004-00034-344210 WATER REVENUE | B76: 525000 | C76: 525000 | D76: 488000
A77: 505-004-00004-00034-344211 WATER PENALTIES | B77: 45000 | C77: 45000 | D77: 45000
A78: 505-004-00004-00034-344212 WATER CONNECTION FEES | B78: 10000 | C78: 10000 | D78: 10000
A79: 505-004-00004-00034-344213 WATER BAD DEBT | B79: 1500 | C79: 1500 | D79: 1500
A80: 505-004-00004-00034-344215 WATER ON/OFF | B80: 500 | C80: 500 | D80: 500
A81: 505-004-00004-00034-344217 MISC-WATER SALES | B81: 1500 | C81: 1500 | D81: 1500
A82: 505-004-00004-00034-344255 SEWER REVENUE | B82: 570000 | C82: 570000 | D82: 540000
A83: 505-004-00004-00034-344257 SEWER CONNECTION FEES | B83: 1500 | C83: 1500 | D83: 400
A84: 505-004-00004-00034-344258 SEWER BAD DEBT | B84: 100 | C84: 100 | D84: 100
A85: 505-004-00004-00034-344422 CCA REIMBURSEMENTS | B85: 29340 | C85: 29340 | D85: 29340
A86: 505-004-00004-00034-349300 RETURN CHECK SERVICE | B86: 200 | C86: 200 | D86: 200
A87: 505-004-00004-00036-361000 INTEREST INCOME-INVESTMENTS | B87: 50 | C87: 50 | D87: 50
A88: 505-004-00004-00038-380050 SOLAR POWER SOLD TO GA POWER
A89: 505-004-00004-00039-390000 GEFA REIMBURSEMENT | B89: 0 | C89: 0 | D89: 0
A90: 515-004-00004-00034-344410 GAS REVENUES | B90: 2700000 | C90: 2050000 | D90: 1884288
A91: 515-004-00004-00034-344411 GAS PENALTIES | B91: 1000 | C91: 1000 | D91: 1000
A92: 515-004-00004-00034-344412 GAS CONNECTION FEES | B92: 1000 | C92: 1000 | D92: 1000
A93: 515-004-00004-00034-344418 MISC-GAS-SALES | B93: 175200 | C93: 175200 | D93: 175200
A94: 515-004-00004-00034-344420 SALES TAX
A95: 515-004-00004-00034-344421 ENERGY EXCISE TAX | B95: 14000 | C95: 10000 | D95: 10000
A96: 515-004-00004-00034-344426 CARBO REIMBURSEMENTS | D96: 0
A97: 515-004-00004-00036-361000 INTEREST INC - INVESTMENTS | B97: 10 | C97: 10 | D97: 10
A98: 540-004-00004-00034-344110 SANITATION CHARGES | B98: 500000 | C98: 477000 | D98: 440000
A99: 540-004-00004-00034-344111 SANITATION PENALTIES | B99: 100 | C99: 100 | D99: 100
A100: 540-004-00004-00034-344112 POLYCARTS
A102: TOTAL REVENUES | B102: =SUM(B5:B47)+SUM(B53:B101) -> 7490124 | C102: =SUM(C5:C47)+SUM(C53:C101) -> 6107020 | D102: =SUM(D5:D47)+SUM(D53:D101) -> 5595238

Sheet LEGISLATION
A1: LEGISLATION
B2: 2023 | C2: 2022 | D2: 2021
B4: BUDGET | C4: BUDGET | D4: BUDGET
A6: 100-101-01110-00051-511100 SALARIES | B6: 19000 | C6: 19000 | D6: 19000
A7: 100-101-01110-00051-512100 EMPLOYEE INSURANCE | B7: 39000 | C7: 39000 | D7: 38000
A8: 100-101-01110-00051-512200 PAYROLL TAXES | B8: 300 | C8: 300 | D8: 300
A9: 100-101-01110-00051-512400 EMPLOYEE RETIREMENT | B9: 1500 | C9: 1500 | D9: 1500
A10: 100-101-01110-00052-521200 PROFESSIONAL SERVICES | B10: 800 | C10: 800 | D10: 800
A11: 100-101-01110-00052-523301 ADVERTISING | B11: 300 | C11: 300 | D11: 300
A12: 100-101-01110-00052-523500 TRAVEL | B12: 3500 | C12: 3500 | D12: 3500
A13: 100-101-01110-00052-523700 TRAINING AND EDUCATION | B13: 3500 | C13: 3500 | D13: 3500
A14: 100-101-01110-00057-573401 MISCELLANEOUS | B14: 1000 | C14: 1000 | D14: 1000
A15: 100-101-01400-00053-531111 ELECTIONS EXPENSE | B15: 10000 | C15: 13000 | D15: 5000
A17: TOTAL EXPENDITURE | B17: =SUM(B6:B15) -> 78900 | C17: =SUM(C6:C15) -> 81900 | D17: =SUM(D6:D15) -> 72900

Sheet ADMINISTRATION
A1: ADMINISTRATION
B2: 2023 | C2: 2022 | D2: 2021
B4: BUDGET | C4: BUDGET | D4: BUDGET
A6: 100-102-01510-00051-511100 SALARIES | B6: 370000 | C6: 342000 | D6: 342363
A7: 100-102-01510-00051-511200 TEMPORARY EMPLOYEES
A8: 100-102-01510-00051-511301 OVERTIME | B8: 1000 | C8: 1000 | D8: 1000
A9: 100-102-01510-00051-512100 EMPLOYEE INSURANCE | B9: 63500 | C9: 63500 | D9: 63500
A10: 100-102-01510-00051-512200 PAYROLL TAXES | B10: 28305 | C10: 25500 | D10: 25990
A11: 100-102-01510-00051-512400 EMPLOYEE RETIREMENT | B11: 19055 | C11: 18500 | D11: 18000
A12: 100-102-01510-00051-512401 EMPLOYEE RETIREMENT 457 | D12: 10260
A13: 100-102-01510-00051-512402 EMPLOYER 457 MATCH | B13: 11100 | C13: 10260 | D13: 10260
A14: 100-102-01510-00051-512700 WORKERS COMP. INSURANCE | B14: 1000 | C14: 1000 | D14: 1000
A15: 100-102-01510-00051-512710 EMPLOYEE MINOR INJURIES | B15: 3500 | C15: 3500 | D15: 3500
A16: 100-102-01510-00052-521200 PROFESSIONAL SERVICES | B16: 37500 | C16: 37500 | D16: 37500
A17: 100-102-01510-00052-521230 PROF SVCS-ACCT/AUDIT | B17: 40000 | C17: 40000 | D17: 40000
A18: 100-102-01510-00052-521240 S.A.V.E. COMPLIANCE | B18: 300 | C18: 300 | D18: 300
A19: 100-102-01510-00052-521320 DRUG & ALCOHOL TESTING | B19: 500 | C19: 500 | D19: 500
A20: 100-102-01510-00052-522220 REPAIRS & MAINT-VEHICLES | B20: 2500 | C20: 2000 | D20: 2000
A21: 100-102-01510-00052-522230 REPAIRS & MAINT-EQUIPMENT | B21: 4000 | C21: 4000 | D21: 4000
A22: 100-102-01510-00052-522240 SOFTWARE MAINTENANCE | B22: 16000 | C22: 15000 | D22: 14750
A23: 100-102-01510-00052-522241 COMPUTER MAINTENANCE | B23: 12000 | C23: 12000 | D23: 12000
A24: 100-102-01510-00052-522260 LANDSCAPING & GROUNDS | B24: 4000 | C24: 4000 | D24: 4000
A25: 100-102-01510-00052-522310 RENTAL/LEASES | B25: 2500 | C25: 2500 | D25: 2500
A26: 100-102-01510-00052-522320 RENTALS-EQUIPMENT | B26: 500 | C26: 500 | D26: 500
A27: 100-102-01510-00052-523200 COMMUNICATIONS | B27: 17000 | C27: 17000 | D27: 16000
A28: 100-102-01510-00052-523301 ADVERTISING | B28: 3000 | C28: 3000 | D28: 3000
A29: 100-102-01510-00052-523500 TRAVEL | B29: 5000 | C29: 5000 | D29: 5000
A30: 100-102-01510-00052-523610 DUES & SUBSCRIPTIONS | B30: 2500 | C30: 2000 | D30: 1750
A31: 100-102-01510-00052-523700 TRAINING & EDUCATION | B31: 5000 | C31: 5000 | D31: 5000
A32: 100-102-01510-00052-523920 BANK SERVICE CHARGES | B32: 600 | C32: 600 | D32: 600
A33: 100-102-01510-00053-530000 COKE FUND | B33: 600 | C33: 600 | D33: 1000
A34: 100-102-01510-00053-530001 SNACK FUND | B34: 400 | C34: 350 | D34: 500
A35: 100-102-01510-00053-531110 OFFICE SUPPLIES | B35: 6250 | C35: 6250 | D35: 6250
A36: 100-102-01510-00053-531120 MAINT & OP SUPPLIES | B36: 5000 | C36: 5000 | D36: 6000
A37: 100-102-01510-00053-531230 UTILITIES | B37: 28000 | C37: 28000 | D37: 28000
A38: 100-102-01510-00053-531270 VEHICLE GASOLINE | B38: 2000 | C38: 2000 | D38: 2500
A39: 100-102-01510-00053-531401 BOOKS AND PERIODICALS | B39: 500 | C39: 500 | D39: 500
A40: 100-102-01510-00053-531720 UNIFORMS | B40: 500 | C40: 250 | D40: 750
A41: 100-102-01510-00053-531730 MISCELLANEOUS | B41: 10000 | C41: 10000 | D41: 10000
A42: 100-102-01510-00053-531732 REIMBURSEMENT/JC/AUTHORITY | B42: 1000 | C42: 1000 | D42: 1000
A43: 100-102-01510-00054-542000 CAP OUTLAY-MACH/EQUIP | B43: 5000 | C43: 5000 | D43: 5000
A44: 100-102-01510-00057-579000 CONTINGENCY | B44: 18500 | C44: 18500 | D44: 18500
A45: 100-102-01510-00057-579100 ADMIN/GRANT/BETTER HT | B45: 18000 | C45: 18000 | D45: 18000
A46: 100-102-01510-00057-579105 DOWNTOWN DEV AUTH FUNDING | B46: 9400 | C46: 9400 | D46: 9400
A47: 100-102-01510-00057-579110 CARES ACT FUNDING EXPENSES | D47: 0
A48: 100-102-01510-00058-582320 INTEREST EXPENSE
A49: 100-102-01510-00058-582325 PRINCIPAL PAYMENTS
A50: 100-102-01545-00031-319500 FI FA | B50: 1000 | C50: 1000 | D50: 1500
A51: 100-102-01555-00052-523100 LIABILITY & PROP INSURANCE | B51: 60000 | C51: 55000 | D51: 55000
A52: 100-102-01565-00052-522210 REPAIRS & MAINT-BUILDING | B52: 25000 | C52: 25000 | D52: 25000
A54: TOTAL EXPENDITURE | B54: =SUM(B6:B52) -> 841510 | C54: =SUM(C6:C52) -> 802010 | D54: =SUM(D6:D52) -> 814173
A56: Demo and Property Clean Up $20,000

Sheet MUNICIPAL COURT
A1: MUNICIPAL COURT
B2: 2023 | C2: 2022 | D2: 2021
B4: BUDGET | C4: BUDGET | D4: BUDGET
A6: 100-104-02650-00051-511100 SALARIES
A7: 100-104-02650-00051-512100 EMPLOYEE INSURANCE
A8: 100-104-02650-00051-512200 PAYROLL TAXES
A9: 100-104-02650-00051-512700 WORKERS COMP INSURANCE
A10: 100-104-02650-00052-521200 PROFESSIONAL SERVICES | B10: 24000 | C10: 24000 | D10: 24000
A11: 100-104-02650-00052-522240 SOFTWARE MAINTENANCE | B11: 13000 | C11: 13000 | D11: 13000
A12: 100-104-02650-00052-523200 COMMUNICATIONS | B12: 100 | C12: 100 | D12: 100
A13: 100-104-02650-00052-523500 TRAVEL | B13: 500 | C13: 500 | D13: 500
A14: 100-104-02650-00052-523610 DUES AND SUBSCRIPTIONS | B14: 100 | C14: 100 | D14: 100
A15: 100-104-02650-00052-523700 TRAINING AND EDUCATION | B15: 750 | C15: 750 | D15: 750
A16: 100-104-02650-00053-531110 OFFICE SUPPLIES | B16: 200 | C16: 200 | D16: 100
A17: 100-104-02650-00057-572035 GSCCCA | B17: 80000 | C17: 100000 | D17: 90000
A18: 100-104-02650-00057-572110 STATE MANDATED FEES | B18: 45000 | C18: 55000 | D18: 52000
A19: 100-104-02650-00057-572120 COURT COSTS | B19: 500 | C19: 500 | D19: 500
A20: 100-104-02650-00057-579000 CONTINGENCY | B20: 1000 | C20: 1000 | D20: 1000
A22: TOTAL EXPENDITURE | B22: =SUM(B5:B20) -> 165150 | C22: =SUM(C5:C20) -> 195150 | D22: =SUM(D5:D20) -> 182050

Sheet POLICE
A1: POLICE
B2: 2023 | C2: 2022 | D2: 2021
B4: BUDGET | C4: BUDGET | D4: BUDGET
A6: 100-105-03200-00051-511100 SALARIES | B6: 545000 | C6: 494000 | D6: 480000
A7: 100-105-03200-00051-511301 OVERTIME | B7: 20000 | C7: 15000 | D7: 15000
A8: 100-105-03200-00051-512100 EMPLOYEE INSURANCE | B8: 122400 | C8: 95500 | D8: 82800
A9: 100-105-03200-00051-512200 PAYROLL TAXES | B9: 8250 | C9: 7900 | D9: 7500
A10: 100-105-03200-00051-512400 EMPLOYEE RETIREMENT | B10: 31200 | C10: 31200 | D10: 31200
A11: 100-105-03200-00051-512401 EMPLOYEE RETIREMENT 457 | D11: 14400
A12: 100-105-03200-00051-512402 EMPLOYER 457 MATCH | B12: 16350 | C12: 14820 | D12: 14400
A13: 100-105-03200-00051-512700 WORKERS COMP INSURANCE | B13: 15000 | C13: 15000 | D13: 20200
A14: 100-105-03200-00052-521320 DRUG & ALCOHOL TESTING | B14: 400 | C14: 400 | D14: 400
A15: 100-105-03200-00052-522210 REPAIRS & MAINT-BLDG | B15: 1500 | C15: 1500 | D15: 1500
A16: 100-105-03200-00052-522220 REPAIRS & MAINT-VEHICLES | B16: 20000 | C16: 15500 | D16: 14000
A17: 100-105-03200-00052-522230 REPAIRS & MAINT-EQUIPMENT | B17: 4000 | C17: 4000 | D17: 4000
A18: 100-105-03200-00052-522240 SOFTWARE MAINTENANCE | B18: 400 | C18: 400 | D18: 400
A19: 100-105-03200-00052-523200 COMMUNICATIONS | B19: 4500 | C19: 4500 | D19: 4500
A20: 100-105-03200-00052-523301 ADVERTISING | B20: 300 | C20: 300 | D20: 300
A21: 100-105-03200-00052-523500 TRAVEL | B21: 3500 | C21: 3500 | D21: 3500
A22: 100-105-03200-00052-523610 DUES & SUBSCRIPTIONS | B22: 1000 | C22: 1000 | D22: 1000
A23: 100-105-03200-00052-523700 TRAINING & EDUCATION | B23: 1500 | C23: 1500 | D23: 1500
A24: 100-105-03200-00052-523710 TECHNOLOGY FUND | B24: 48000 | C24: 48000 | D24: 42600
A25: 100-105-03200-00053-531110 OFFICE SUPPLIES | B25: 2000 | C25: 2000 | D25: 2000
A26: 100-105-03200-00053-531120 MAINT & OPS SUPPLIES | B26: 1500 | C26: 1500 | D26: 1500
A27: 100-105-03200-00053-531270 VEHICLE GASOLINE | B27: 42000 | C27: 31500 | D27: 35000
A28: 100-105-03200-00053-531720 UNIFORMS | B28: 7500 | C28: 7500 | D28: 7500
A29: 100-105-03200-00053-531730 MISCELLANEOUS | B29: 7000 | C29: 7000 | D29: 7000
A30: 100-105-03200-00054-540000 CAPITAL OUTLAY-SAFETY GRANT
A31: 100-105-03200-00054-542000 CAPITAL OUTLAY MACH/EQUIP | B31: 40000 | C31: 40000 | D31: 50000
A32: 100-105-03200-00057-572030 PEACE OFFICERS' ANNUITY | B32: 3300 | C32: 3300 | D32: 3300
A33: 100-105-03200-00057-579000 CONTINGENCIES | B33: 15000 | C33: 15000 | D33: 15000
A34: 100-105-03226-00052-523940 PRISONER MEDICAL CARE | B34: 2000 | C34: 2000 | D34: 2000
A35: 100-105-03226-00052-523941 INMATE HOUSING AND FOOD | B35: 4000 | C35: 4000 | D35: 5000
A37: TOTAL EXPENDITURE | B37: =SUM(B6:B35) -> 967600 | C37: =SUM(C6:C35) -> 867820 | D37: =SUM(D6:D35) -> 867500

Sheet FIRE
A1: FIRE
B2: 2023 | C2: 2022 | D2: 2021
B4: BUDGET | C4: BUDGET | D4: BUDGET
A6: 100-106-03500-00051-511100 SALARIES | B6: 267800 | C6: 260000 | D6: 247600
A7: 100-106-03500-00051-511110 SALARIES-VOL FIREMEN | B7: 26000 | C7: 26000 | D7: 26000
A8: 100-106-03500-00051-511301 OVERTIME | B8: 17000 | C8: 16000 | D8: 15000
A9: 100-106-03500-00051-512100 EMPLOYEE INSURANCE | B9: 71400 | C9: 63400 | D9: 55000
A10: 100-106-03500-00051-512101 FIREFIGHTER CANCER INSURANCE | B10: 4750 | C10: 4750 | D10: 4500
A11: 100-106-03500-00051-512200 PAYROLL TAXES | B11: 5100 | C11: 5100 | D11: 5000
A12: 100-106-03500-00051-512400 EMPLOYEE RETIREMENT | B12: 25000 | C12: 25000 | D12: 24000
A13: 100-106-03500-00051-512401 EMPLOYEE RETIREMENT 457 | D13: 7428
A14: 100-106-03500-00051-512402 EMPLOYER 457 MATCH | B14: 8000 | C14: 7800 | D14: 7428
A15: 1001-06-03500-00051-512700 WORKERS COMP. INSURANCE | B15: 15000 | C15: 15400 | D15: 7200
A16: 100-106-03500-00052-521320 DRUG & ALCOHOL TESTING | B16: 500 | C16: 500 | D16: 500
A17: 100-106-03500-00052-522210 REPAIRS & MAINT-BLDG | B17: 2500 | C17: 2500 | D17: 2000
A18: 100-106-03500-00052-522220 REPAIRS & MAINT-VEHICLE | B18: 4000 | C18: 4000 | D18: 4000
A19: 100-106-03500-00052-522230 REPAIRS & MAINT-EQUIP | B19: 6500 | C19: 6500 | D19: 6500
A20: 100-106-03500-00052-522240 SOFTWARE MAINTENANCE | B20: 1000 | C20: 1000 | D20: 350
A21: 100-106-03500-00052-522241 COMPUTER MAINTENANCE | B21: 3500 | C21: 3500 | D21: 3500
A22: 100-106-03500-00052-523200 COMMUNICATIONS | B22: 1500 | C22: 1500 | D22: 1500
A23: 100-106-03500-00052-523301 ADVERTISING | B23: 200 | C23: 200 | D23: 200
A24: 100-106-03500-00052-523500 TRAVEL | B24: 1000 | C24: 1000 | D24: 1000
A25: 100-106-03500-00052-523610 DUES & SUBSCRIPTIONS | B25: 100 | C25: 100 | D25: 100
A26: 100-106-03500-00052-523700 TRAINING & EDUCATION | B26: 1000 | C26: 1000 | D26: 1000
A27: 100-106-03500-00053-531110 OFFICE SUPPLIES | B27: 450 | C27: 450 | D27: 450
A28: 100-106-03500-00053-531120 MAINT & OPERATING | B28: 500 | C28: 500 | D28: 500
A29: 100-106-03500-00053-531130 CHEMICALS | B29: 200 | C29: 200 | D29: 200
A30: 100-106-03500-00053-531270 VEHICLE GASOLINE | B30: 2500 | C30: 1500 | D30: 1500
A31: 100-106-03500-00053-531720 UNIFORMS | B31: 6000 | C31: 6000 | D31: 6000
A32: 100-106-03500-00053-531730 MISCELLANEOUS | B32: 7000 | C32: 7000 | D32: 7000
A33: 100-106-03500-00054-540000 CAPITAL OUTLAY SAFETY GRANT
A34: 100-106-03500-00054-540001 FIREWORKS GRANT
A35: 100-106-03500-00054-542000 CAPITAL OUTLAY | B35: 15000 | C35: 15000 | D35: 15000
A36: 100-106-03500-00057-572020 PENSION FUND | B36: 2100 | C36: 2100 | D36: 2100
A37: 100-106-03500-00057-579000 CONTINGENCIES | B37: 5000 | C37: 5000 | D37: 5000
A39: TOTAL EXPENDITURE | B39: =SUM(B6:B37) -> 500600 | C39: =SUM(C6:C37) -> 483000 | D39: =SUM(D6:D37) -> 457556

Sheet ANIMAL CONTROL
A1: ANIMAL CONTROL
B2: 2023 | C2: 2022 | D2: 2021
B4: BUDGET | C4: BUDGET | D4: BUDGET
A6: 100-107-03910-00051-511100 SALARIES | B6: 7800 | C6: 7800 | D6: 7800
A7: 100-107-03910-00051-512200 PAYROLL TAXES | B7: 650 | C7: 650 | D7: 650
A8: 100-107-03910-00051-512700 WORKERS COMP INSURANCE | B8: 120 | C8: 120 | D8: 120
A9: 100-017-03910-00052-521200 PROFESSIONAL SERVICES | B9: 13000 | C9: 9000 | D9: 9000
A10: 100-107-03910-00052-522210 REPAIRS & MAINT-BUILDING | B10: 2000 | C10: 2000 | D10: 2000
A11: 100-017-03910-00052-522230 REPAIRS & MAINT-EQUIPMENT | B11: 700 | C11: 700 | D11: 700
A12: 100-107-03910-00053-531110 OFFICE SUPPLIES | B12: 200 | C12: 200 | D12: 200
A13: 100-107-03910-00053-531120 MAINT & OPERATING SUPPLIES | B13: 2500 | C13: 2000 | D13: 2000
A14: 100-107-03910-00053-531230 UTILITIES | B14: 1000 | C14: 1000 | D14: 1000
A15: 100-107-03910-00053-531710 ANIMAL FOOD | B15: 1000 | C15: 1000 | D15: 1000
A16: 100-107-03910-00053-531730 MISCELLANEOUS | B16: 1000 | C16: 1000 | D16: 1000
A18: TOTAL EXPENDITURE | B18: =SUM(B6:B16) -> 29970 | C18: =SUM(C6:C16) -> 25470 | D18: =SUM(D6:D16) -> 25470

Sheet STREET AND LANES
A1: STREET AND LANES
B2: 2023 | C2: 2022 | D2: 2021
B4: BUDGET | C4: BUDGET | D4: BUDGET
A6: 100-108-04200-00051-511100 SALARIES | B6: 224600 | C6: 218000 | D6: 218050
A7: 100-108-04200-00051-511301 OVERTIME/PART-TIME | B7: 5000 | C7: 5000 | D7: 5000
A8: 100-108-04200-00051-512100 EMPLOYEE INSURANCE | B8: 81600 | C8: 65000 | D8: 62100
A9: 100-108-04200-00051-512200 PAYROLL TAXES | B9: 17200 | C9: 16680 | D9: 16680
A10: 100-018-04200-00051-512400 EMPLOYEE RETIREMENT | B10: 16000 | C10: 11500 | D10: 11500
A11: 100-108-04200-00051-512401 EMPLOYEE RETIREMENT 457 | D11: 6541
A12: 100-108-04200-00051-512402 EMPLOYER 457 MATCH | B12: 6750 | C12: 6540 | D12: 6541
A13: 100-108-04200-00051-512700 WORKERS COMP INSURANCE | B13: 17000 | C13: 17000 | D13: 17000
A14: 100-108-04200-00052-521200 PROFESSIONAL SERVICES | B14: 10000 | C14: 10000 | D14: 15000
A15: 100-108-04200-00052-521215 CONTRACTED MAINTENANCE
A16: 100-108-04200-00052-521320 DRUG & ALCOHOL TESTING | B16: 500 | C16: 500 | D16: 600
A17: 100-108-04200-00052-522210 REPAIRS & MAINT-BLDG/GRND | B17: 2500 | C17: 2500 | D17: 2500
A18: 100-108-04200-00052-522220 REPAIRS & MAINT-VEHICLES | B18: 10000 | C18: 10000 | D18: 15000
A19: 100-108-04200-00052-522230 REPAIRS & MAINT-EQUIPMENT | B19: 20000 | C19: 15000 | D19: 20000
A20: 100-108-04200-00052-522240 SOFTWARE MAINTENANCE | B20: 1000 | C20: 1000 | D20: 1000
A21: 100-108-04200-00052-522241 COMPUTER MAINTENANCE | B21: 700 | C21: 700 | D21: 700
A22: 100-108-04200-00052-523200 COMMUNICATIONS | B22: 3500 | C22: 3500 | D22: 3500
A23: 100-108-04200-00052-523301 ADVERTISING | B23: 300 | C23: 300 | D23: 400
A24: 100-108-04200-00052-523500 TRAVEL | B24: 100 | C24: 100 | D24: 100
A25: 100-108-04200-00052-523700 TRAINING & EDUCATION | B25: 400 | C25: 400 | D25: 400
A26: 100-108-04200-00053-531110 OFFICE SUPPLIES | B26: 300 | C26: 300 | D26: 300
A27: 100-108-04200-00053-531120 MAINT & OPERATING SUPPLIES | B27: 12000 | C27: 11000 | D27: 11000
A28: 100-108-04200-00053-531140 SMALL TOOLS /MINOR EQUIP | B28: 1000 | C28: 1000 | D28: 1000
A29: 100-108-04200-00053-531151 SUPPLIES-STREET SIGNS | B29: 5000 | C29: 2250 | D29: 2000
A30: 100-108-04200-00053-531152 UTILITIES-STREET LIGHTS/SIGS | B30: 107250 | C30: 107250 | D30: 107250
A31: 100-108-04200-00053-531230 UTILITIES | B31: 4500 | C31: 4500 | D31: 4500
A32: 100-108-04200-00053-531270 VEHICLE GASOLINE | B32: 20000 | C32: 10000 | D32: 17000
A33: 100-108-04200-00053-531720 UNIFORMS | B33: 4500 | C33: 4000 | D33: 4500
A34: 100-108-04200-00053-531730 MISCELLANEOUS | B34: 6000 | C34: 6000 | D34: 6000
A35: 100-108-04200-00054-540000 CAPITAL OUTLAY SAFETY GRANT
A36: 100-108-04200-00054-540010 DOT LMIG | B36: 49000 | C36: 49000 | D36: 49500
A37: 100-108-04200-00054-541200 CAPITAL OUTLAY IMPROVEMENTS
A38: 100-108-04200-00054-541420 STREET CONSTR/RESURFACE | B38: 10000 | C38: 10000 | D38: 10000
A39: 100-108-04200-00054-541430 SIDEWALKS/CURBS/GUTTERS | B39: 5000 | C39: 5000 | D39: 5000
A40: 100-108-04200-00054-542000 CAPITAL OUTLAY MACH/EQUIP | B40: 15000 | C40: 15000 | D40: 10000
A41: 100-108-04200-00057-579000 CONTINGENCIES | B41: 15000 | C41: 15000 | D41: 15000
A42: 100-108-04200-00058-581300 DEBT SERVICE
A44: TOTAL EXPENDITURE | B44: =SUM(B6:B42) -> 671700 | C44: =SUM(C6:C42) -> 624020 | D44: =SUM(D6:D42) -> 645662

Sheet SHOP
A1: SHOP
B2: 2023 | C2: 2022 | D2: 2021
B4: BUDGET | C4: BUDGET | D4: BUDGET
A6: 100-109-04900-00051-511100 SALARIES | B6: 54025 | C6: 52450 | D6: 50930
A7: 100-109-04900-00051-512100 EMPLOYEE INSURANCE | B7: 10200 | C7: 7950 | D7: 6900
A8: 100-109-04900-00051-512200 PAYROLL TAXES | B8: 4135 | C8: 4032 | D8: 3915
A9: 100-109-04900-00051-512400 EMPLOYEE RETIREMENT | B9: 3500 | C9: 3450 | D9: 3300
A10: 100-109-04900-00051-512401 EMPLOYEE RETIREMENT 457 | D10: 1530
A11: 100-109-04900-00051-512402 EMPLOYER 457 MATCH | B11: 1620 | C11: 1573 | D11: 1530
A12: 100-109-04900-00051-512700 WORKERS COMP INSURANCE | B12: 1200 | C12: 1400 | D12: 1200
A13: 100-109-04900-00052-521235 UTILITIES - NATURAL GAS | B13: 250 | C13: 250 | D13: 250
A14: 100-109-04900-00052-521320 DRUG AND ALCOHOL TESTING | B14: 50 | C14: 50 | D14: 50
A15: 100-109-04900-00052-522210 REPAIRS & MAINT-BLDG/GRND | B15: 1000 | C15: 1000 | D15: 1000
A16: 100-109-04900-00052-522220 REPAIRS & MAINT-VEHICLES | B16: 1500 | C16: 1500 | D16: 2000
A17: 100-109-04900-00052-522230 REPAIRS & MAINT-EQUIP | B17: 400 | C17: 400 | D17: 400
A18: 100-109-04900-00052-522241 COMPUTER MAINTENANCE | B18: 1000 | C18: 1000 | D18: 1000
A19: 100-109-04900-00052-523200 COMMUNICATIONS | B19: 1200 | C19: 1200 | D19: 1200
A20: 100-109-04900-00052-523700 TRAINING & EDUCATION | B20: 100 | C20: 100 | D20: 100
A21: 100-109-04900-00053-531110 OFFICE SUPPLIES | B21: 250 | C21: 250 | D21: 250
A22: 100-109-04900-00053-531120 MAINT & OPERATING SUPPLY | B22: 2000 | C22: 2000 | D22: 2000
A23: 100-109-04900-00053-531230 UTILITIES - ELECTRIC | B23: 3000 | C23: 3000 | D23: 3200
A24: 100-109-04900-00053-531270 VEHICLE GASOLINE | B24: 1000 | C24: 800 | D24: 800
A25: 100-109-04900-00053-531720 UNIFORMS | B25: 750 | C25: 750 | D25: 750
A26: 100-109-04900-00053-531730 MISCELLANEOUS | B26: 1000 | C26: 1000 | D26: 1000
A27: 100-109-04900-00054-542000 CAPITAL OUTLAY | B27: 1000 | C27: 1000 | D27: 1000
A29: TOTAL EXPENDITURE | B29: =SUM(B6:B27) -> 89180 | C29: =SUM(C6:C27) -> 85155 | D29: =SUM(D6:D27) -> 84305

Sheet SEWER
A1: SEWER
B2: 2023 | C2: 2022 | D2: 2021
B4: BUDGET | C4: BUDGET | D4: BUDGET
A6: 505-110-04330-00051-511100 SALARIES | B6: 92700 | C6: 92700 | D6: 92700
A7: 505-110-04330-00051-511300 OVERTIME | B7: 1000 | C7: 1000 | D7: 1000
A8: 505-110-04330-00051-512100 EMPLOYEE INSURANCE | B8: 20400 | C8: 17640 | D8: 21140
A9: 505-110-04330-00051-512200 PAYROLL TAXES | B9: 7100 | C9: 7100 | D9: 7100
A10: 505-110-04330-00051-512400 EMPLOYEE RETIREMENT | B10: 7000 | C10: 7000 | D10: 7000
A11: 505-110-04330-00051-512401 EMPLOYEE RETIREMENT 457 | D11: 2781
A12: 505-110-04330-00051-512402 EMPLOYER 457 MATCH | B12: 2780 | C12: 2780 | D12: 2781
A13: 505-110-04330-00051-512700 WORKERS COMP INSURANCE | B13: 2000 | C13: 2000 | D13: 2000
A14: 505-110-04330-00052-521200 PROFESSIONAL SERVICES | B14: 10000 | C14: 5000 | D14: 5000
A15: 505-110-04330-00052-521210 ENGINEERING FEES | B15: 5000 | C15: 3000 | D15: 3000
A16: 505-110-04330-00052-521310 TECHNICAL SVCS & TESTING | B16: 60000 | C16: 60000 | D16: 50000
A17: 505-110-04330-00052-521320 DRUG & ALCOHOL TESTING | B17: 250 | C17: 250 | D17: 250
A18: 505-110-04330-00052-522210 REPAIRS & MAINT-BUILDING | B18: 1500 | C18: 1500 | D18: 1500
A19: 505-110-04330-00052-522220 REPAIRS & MAINT-VEHICLES | B19: 2000 | C19: 1700 | D19: 1700
A20: 505-110-04330-00052-522230 REPAIRS & MAINT-EQUIPMENT | B20: 7500 | C20: 7500 | D20: 5000
A21: 505-110-04330-00052-522240 SOFTWARE MAINTENANCE | B21: 1000 | C21: 1000 | D21: 1000
A22: 505-110-04300-00052-522241 COMPUTER MAINTENANCE | B22: 1300 | C22: 1300 | D22: 1300
A23: 505-110-04330-00052-523200 COMMUNICATIONS | B23: 1500 | C23: 1500 | D23: 1500
A24: 505-110-04330-00052-523301 ADVERTISING | B24: 200 | C24: 200 | D24: 200
A25: 505-110-04330-00052-523500 TRAVEL | B25: 1000 | C25: 1000 | D25: 1000
A26: 505-110-04330-00052-523610 DUES & SUBSCRIPTIONS | B26: 300 | C26: 300 | D26: 300
A27: 505-110-04330-00052-523700 TRAINING & EDUCATION | B27: 700 | C27: 700 | D27: 700
A28: 505-110-04330-00052-523702 ARP EXPENSE FUND | B28: 320000
A29: 505-110-04330-00053-531110 OFFICE SUPPLIES | B29: 500 | C29: 500 | D29: 500
A30: 505-110-04330-00053-531120 MAINT & OPERATING-SUPPLIES | B30: 32500 | C30: 30000 | D30: 30000
A31: 505-110-04330-00053-531140 SMALL TOOLS/MINOR EQUIP | B31: 1000 | C31: 1000 | D31: 500
A32: 505-110-04330-00053-531230 UTILITIES | B32: 32000 | C32: 30000 | D32: 44000
A33: 505-110-04330-00053-531270 VEHICLE GASOLINE | B33: 7500 | C33: 5000 | D33: 5000
A34: 505-110-04330-00053-531720 UNIFORMS | B34: 1500 | C34: 1500 | D34: 1500
A35: 505-110-04330-00053-531730 MISCELLANEOUS | B35: 8500 | C35: 8500 | D35: 8500
A36: 505-110-04330-00054-540000 CAPITAL OUTLAY SAFETY GRANT
A37: 505-110-04330-00054-541200 CAPITAL IMPROVEMENTS | B37: 15000 | C37: 15000 | D37: 15000
A38: 505-110-04330-00054-541210 SEWER CAPITAL IMP SOLAR PANEL
A39: 505-110-04330-00054-542000 CAPITAL OUTLAY-MACH/EQUIP | B39: 15000 | C39: 15000 | D39: 15000
A40: 505-110-04330-00057-574000 BAD DEBT EXPENSE
A41: 505-110-04330-00057-579000 CONTINGENCY | B41: 30000 | C41: 30000 | D41: 30000
A42: 505-110-04330-00058-581310 GEFA PRINCIPAL
A43: 505-110-04330-00058-581311 USDA PRINCIPAL
A44: 505-110-04330-00058-582321 USDA INTEREST | B44: 45000 | C44: 45000 | D44: 45000
A45: 505-110-04330-00058-582322 GEFA INTEREST | B45: 60000 | C45: 60000 | D45: 60000
A46: 505-110-04330-00058-582327 GEFA #3 | B46: 37350 | C46: 37350 | D46: 37350
A47: 505-110-04330-00058-582328 GEFA #4 | B47: 20500 | C47: 20500 | D47: 20500
A49: TOTAL EXPENDITURE | B49: =SUM(B6:B47) -> 851580 | C49: =SUM(C6:C47) -> 514520 | D49: =SUM(D6:D47) -> 521802

Sheet WATER
A1: WATER
B2: 2023 | C2: 2022 | D2: 2021
B4: BUDGET | C4: BUDGET | D4: BUDGET
A6: 505-111-04420-00051-511100 SALARIES | B6: 89000 | C6: 85900 | D6: 83400
A7: 505-111-04420-00051-511300 OVERTIME | B7: 1000 | C7: 1000 | D7: 500
A8: 505-111-04420-00051-512100 EMPLOYEE INSURANCE | B8: 30600 | C8: 25500 | D8: 25500
A9: 505-111-04420-00051-512200 PAYROLL TAXES | B9: 6810 | C9: 6380 | D9: 6380
A10: 505-111-04420-00051-512400 EMPLOYEE RETIREMENT | B10: 7600 | C10: 7600 | D10: 7500
A11: 505-111-04420-00051-512401 EMPLOYEE RETIREMENT 457 | D11: 2500
A12: 505-111-04420-00051-512402 EMPLOYER 457 MATCH | B12: 2670 | C12: 2577 | D12: 2500
A13: 505-111-04420-00051-512700 WORKERS COMP INSURANCE | B13: 4000 | C13: 4000 | D13: 4000
A14: 505-111-04420-00052-521200 PROFESSIONAL SERVICES | B14: 52500 | C14: 52500 | D14: 52500
A15: 505-111-04420-00052-521210 ENGINEERING FEES | B15: 4500 | C15: 4000 | D15: 4000
A16: 505-111-04420-00052-521310 TECHNICAL SVCS & TESTING | B16: 30000 | C16: 30000 | D16: 30000
A17: 505-111-04420-00052-521311 AMI METER READING | B17: 17500 | C17: 17500 | D17: 0
A18: 505-111-04420-00052-521320 DRUG & ALCOHOL TESTING | B18: 200 | C18: 200 | D18: 200
A19: 505-111-04420-00052-522210 REPAIRS & MAINT- BUILDING | B19: 2000 | C19: 1500 | D19: 1500
A20: 505-111-04420-00052-522220 REPAIRS & MAINT- VEHICLES | B20: 3500 | C20: 3500 | D20: 2000
A21: 505-111-04420-00052-522230 REPAIRS & MAINT-EQUIPMENT | B21: 5000 | C21: 5000 | D21: 5000
A22: 505-111-04420-00052-522240 SOFTWARE MAINTENANCE | B22: 1000 | C22: 1000 | D22: 1000
A23: 505-111-04420-00052-522241 COMPUTER MAINTENANCE | B23: 1250 | C23: 1250 | D23: 1250
A24: 505-111-04420-00052-523200 COMMUNICATIONS | B24: 2500 | C24: 2500 | D24: 2500
A25: 505-111-04420-00052-523301 ADVERTISING | B25: 450 | C25: 450 | D25: 450
A26: 505-111-04420-00052-523500 TRAVEL | B26: 500 | C26: 500 | D26: 500
A27: 505-111-04420-00052-523610 DUES & SUBCRIPTIONS | B27: 2500 | C27: 1000 | D27: 1000
A28: 505-111-04420-00052-523700 TRAINING & EDUCATION | B28: 1000 | C28: 1000 | D28: 1000
A29: 505-111-04420-00052-523702 ARP EXPENSE FUND | B29: 50000 | C29: 0 | D29: 0
A30: 505-111-04420-00053-531110 OFFICE SUPPLIES | B30: 500 | C30: 500 | D30: 500
A31: 505-111-04420-00053-531120 MAINT & OPERATING-SUPPLIES | B31: 30000 | C31: 40000 | D31: 40000
A32: 505-111-04420-00053-531140 SMALL TOOLS/MINOR EQUIP | B32: 500 | C32: 500 | D32: 500
A33: 505-111-04420-00053-531230 UTILITIES | B33: 32500 | C33: 32500 | D33: 32500
A34: 505-111-04420-00053-531270 VEHICLE GASOLINE | B34: 13000 | C34: 7000 | D34: 7000
A35: 505-111-04420-00053-531720 UNIFORMS | B35: 1500 | C35: 1500 | D35: 1500
A36: 505-111-04420-00053-531730 MISCELLANEOUS | B36: 4000 | C36: 4000 | D36: 4000
A37: 505-111-04420-00054-541200 CAP OUTLAY-IMPROVEMENTS | B37: 5000 | C37: 5000 | D37: 5000
A38: 505-111-04420-00054-542000 CAPITAL OUTLAY-MACH/EQUIP | B38: 7500 | C38: 7500 | D38: 7500
A39: 505-111-04420-00057-574000 BAD DEBT EXPENSE | B39: 1000 | C39: 1000 | D39: 1000
A40: 505-111-04420-00057-579000 CONTINGENCY FUND | B40: 3500 | C40: 3500 | D40: 3500
A41: 505-111-04420-00058-581310 PRINCIPAL
A42: 505-111-04420-00058-582324 GEFA #2 | B42: 5500 | C42: 5500 | D42: 5500
A43: 505-111-04420-00058-582329 GEFA #5 | B43: 20000 | C43: 20000 | D43: 18000
A45: TOTAL EXPENDITURE | B45: =SUM(B6:B43) -> 440580 | C45: =SUM(C6:C43) -> 383357 | D45: =SUM(D6:D43) -> 361680

Sheet GAS
A1: GAS
B2: 2023 | C2: 2022 | D2: 2021
B4: BUDGET | C4: BUDGET | D4: BUDGET
A6: 515-112-04700-00051-511100 SALARIES | B6: 106600 | C6: 103412 | D6: 100400
A7: 515-112-04700-00051-511300 OVERTIME | B7: 750 | C7: 750 | D7: 750
A8: 515-112-04700-00051-512100 EMPLOYEE INSURANCE | B8: 36000 | C8: 35136 | D8: 26800
A9: 515-112-04700-00051-512200 PAYROLL TAXES | B9: 8155 | C9: 7770 | D9: 7550
A10: 515-112-04700-00051-512400 EMPLOYEE RETIREMENT | B10: 12000 | C10: 12000 | D10: 12000
A11: 515-112-04700-00051-512401 EMPLOYEE RETIREMENT 457 | D11: 3050
A12: 515-112-04700-00051-512402 EMPLOYER 457 MATCH | B12: 3200 | C12: 3100 | D12: 3050
A13: 515-112-04700-00051-512700 WORKERS COMP INSURANCE | B13: 3800 | C13: 3800 | D13: 3800
A14: 515-112-04700-00052-521200 PROFESSIONAL SERVICES | B14: 10000 | C14: 10000 | D14: 10000
A15: 515-112-04700-00052-521210 ENGINEERING FEES | B15: 2500 | C15: 1000 | D15: 1000
A16: 515-112-04700-00052-521310 TECHNICAL SVCS & TESTING | B16: 10000 | C16: 8500 | D16: 7300
A17: 515-112-04700-00052-521311 AMI METER READING | B17: 10000 | C17: 10000 | D17: 0
A18: 515-112-04700-00052-521320 DRUG & ALCOHOL TESTING | B18: 300 | C18: 300 | D18: 400
A19: 515-112-04700-00052-522210 REPAIRS & MAINT-BUILDING | B19: 1800 | C19: 1500 | D19: 1500
A20: 515-112-04700-00052-522220 REPAIRS & MAINT-VEHICLES | B20: 2000 | C20: 2000 | D20: 2000
A21: 515-112-04700-00052-522230 REPAIRS & MAINT-EQUIPMENT | B21: 3500 | C21: 3500 | D21: 3000
A22: 515-112-04700-00052-522240 SOFTWARE MAINTENANCE | B22: 1000 | C22: 1000 | D22: 1000
A23: 515-112-04700-00052-522241 COMPUTER MAINTENANCE | B23: 1200 | C23: 1200 | D23: 1200
A24: 515-112-04700-00052-523200 COMMUNICATIONS | B24: 3600 | C24: 3600 | D24: 3600
A25: 515-112-04700-00052-523301 ADVERTISING | B25: 500 | C25: 500 | D25: 500
A26: 515-112-04700-00052-523500 TRAVEL | B26: 1200 | C26: 1200 | D26: 1200
A27: 515-112-04700-00052-523610 DUES & SUBSCRIPTIONS | B27: 500 | C27: 500 | D27: 500
A28: 515-112-04700-00052-523700 TRAINING & EDUCATION | B28: 1000 | C28: 1000 | D28: 1000
A29: 515-112-04700-00052-523701 GAS INCENTIVE EXPENSE | B29: 7500 | C29: 5000 | D29: 5000
A30: 515-112-04700-00053-531110 OFFICE SUPPLIES | B30: 500 | C30: 500 | D30: 500
A31: 515-112-04700-00053-531120 MAINT & OPER-SUPPLIES | B31: 20000 | C31: 19000 | D31: 19000
A32: 515-112-04700-00053-531140 SMALL TOOLS/MINOR EQUIP | B32: 1500 | C32: 1500 | D32: 1500
A33: 515-112-04700-00053-531230 UTILITIES | B33: 5800 | C33: 5500 | D33: 5500
A34: 515-112-04700-00053-531270 VEHICLE GASOLINE | B34: 9000 | C34: 6000 | D34: 6000
A35: 515-112-04700-00053-531520 GAS PURCHASES | B35: 2000000 | C35: 1225000 | D35: 1000000
A36: 515-112-04700-00053-531720 UNIFORMS | B36: 1500 | C36: 1500 | D36: 1500
A37: 515-112-04700-00053-531730 MISCELLANEOUS | B37: 1000 | C37: 1000 | D37: 1000
A38: 515-112-04700-00054-541200 CAP OUTLAY-IMPROVEMENTS | B38: 10000 | C38: 10000 | D38: 10000
A39: 515-112-04700-00054-542000 CAPITAL OUTLAY-MACH/EQUIP | B39: 20000 | C39: 20000 | D39: 20000
A40: 515-112-04700-00057-579000 CONTINGENCIES | B40: 12500 | C40: 12500 | D40: 12500
A41: 515-112-04700-00058-581310 MGAG REPAYMENT
A42: 515-112-04700-00058-582320 INTEREST EXPENSE | D42: 0
A43: 515-112-04700-00058-582323 INTEREST | D43: 0
A45: TOTAL EXPENDITURE | B45: =SUM(B6:B43) -> 2308905 | C45: =SUM(C6:C43) -> 1519268 | D45: =SUM(D6:D43) -> 1274100

Sheet SANITATION
A1: SANITATION
B2: 2023 | C2: 2022 | D2: 2021
B4: BUDGET | C4: BUDGET | D4: BUDGET
A6: 540-113-04300-00051-511100 SALARIES | B6: 56800 | C6: 55100 | D6: 126650
A7: 540-113-04300-00051-511300 OVERTIME | D7: 1500
A8: 540-113-04300-00051-512100 EMPLOYEE INSURANCE | B8: 11000 | C8: 8400 | D8: 26900
A9: 540-113-04300-00051-512200 PAYROLL TAXES | B9: 4345 | C9: 4250 | D9: 9690
A10: 540-113-04300-00051-512400 EMPLOYEE RETIREMENT | B10: 4000 | C10: 3000 | D10: 12000
A11: 540-113-04300-00051-512401 EMPLOYEE RETIREMENT 457 | D11: 3800
A12: 540-113-04300-00051-512402 EMPLOYER 457 MATCH | B12: 1704 | C12: 1655 | D12: 3800
A13: 540-113-04300-00051-512700 WORKERS COMP INSURANCE | B13: 3500 | C13: 3000 | D13: 10000
A14: 540-113-04300-00052-521216 CONTRACT SERVICES | B14: 448000 | C14: 435000 | D14: 0
A15: 540-113-04300-00051-521320 DRUG & ALCOHOL TESING | B15: 100 | C15: 100 | D15: 400
A16: 540-113-04300-00052-521325 EMPLOYEE PHYSICALS | B16: 100 | C16: 100 | D16: 100
A17: 540-113-04300-00052-522220 REPAIRS & MAINT-VEHICLES | B17: 1500 | C17: 1500 | D17: 20000
A18: 540-113-04300-00052-522230 REPAIRS & MAINT-EQUIPMENT | B18: 100 | C18: 100 | D18: 2000
A19: 540-113-04300-00052-522240 SOFTWARE MAINTENANCE | B19: 500 | C19: 500 | D19: 1000
A20: 540-113-04300-00052-522241 COMPUTER MAINTENANCE | B20: 1000 | C20: 1000 | D20: 1000
A21: 540-113-04300-00052-523200 COMMUNICATIONS | B21: 600 | C21: 600 | D21: 600
A22: 540-113-04300-00052-523301 ADVERTISING | B22: 100 | C22: 100 | D22: 200
A23: 540-113-04300-00052-523500 TRAVEL
A24: 540-113-04300-00052-523700 TRAINING AND EDUCATION
A25: 540-113-04300-00053-531110 OFFICE SUPPLIES | B25: 200 | C25: 200 | D25: 200
A26: 540-113-04300-00053-531120 MAINT & OPER SUPPLIES | B26: 1000 | C26: 1000 | D26: 8000
A27: 540-113-04300-00053-531140 SMALL TOOLS/ MINOR EQUIP | B27: 500 | C27: 345 | D27: 500
A28: 540-113-04300-00053-531270 VEHICLE GASOLINE | B28: 2500 | C28: 2500 | D28: 27600
A29: 540-113-04300-00053-531720 UNIFORMS | B29: 400 | C29: 400 | D29: 1600
A30: 540-113-04300-00053-531730 MISCELLANEOUS | B30: 1000 | C30: 1000 | D30: 3000
A31: 540-113-04300-00054-541200 CAP OUTLAY-IMPROVEMENTS | B31: 1000 | C31: 1000 | D31: 1000
A32: 540-113-04300-00054-542000 CAPITAL OUTLAY-MACH/EQUIP | B32: 1000 | C32: 1000 | D32: 3000
A33: 540-113-04300-00054-542012 CAPITAL OUTLAY-POLYCARTS | D33: 12000
A34: 540-113-04300-00057-571030 LANDFILL FEES | B34: 2500 | C34: 2500 | D34: 9000
A35: 540-113-04300-00057-579000 CONTINGENCIES | B35: 1000 | C35: 1000 | D35: 2500
A37: TOTAL EXPENDITURE | B37: =SUM(B6:B35) -> 544449 | C37: =SUM(C6:C35) -> 525350 | D37: =SUM(D6:D35) -> 288040
